[Event "22nd Alekhine FIDE 2018"]
[Site "Voronezh"]
[Date "2018.06.17"]
[Round "6"]
[White "Bobkov, Vadim"]
[Black "Artemov, Nikita"]
[Result "0-1"]
[ECO "A56"]
[WhiteElo "2058"]
[BlackElo "1970"]
[Annotator "NA"]
[PlyCount "77"]
[EventDate "2018.??.??"]
[EventType "swiss"]
[EventCountry "RUS"]
[SourceTitle "playchess.com"]
[Source "ChessBase"]
[SourceQuality "1"]
[TimeControl "5400+30"]

{[%evp 12,69,62,32767,72,56,49,38,32767,32767,32767,32767,32767,48,58,32767,45,47,86,61,83,57,75,76,60,35,54,54,60,32767,200,197,218,32767,238,220,218,122,119,32767,32767,32767,32767,-43,0,-526,32767,32767,32767,-510,-546,-578,-618,-842,-796,32767,-806,-773,-964,-866]} 1. d4 {[%emt 0:00:00]} Nf6 {[%emt 0:13:07]} 2. c4 {[%emt 0:00:00]} c5 {[%emt 0:00:04]} 3. d5 {[%emt 0:00:00]} g6 {[%emt 0:00:06]} 4. Nc3 {[%emt 0:00:00]} Bg7 {[%emt 0:00:06]} 5. e4 {[%emt 0:00:00]} O-O {[%emt 0:00:05]} 6. Be2 {[%emt 0:00:01]} d6 {[%emt 0:00:24]} 7. Bg5 {[%emt 0:00:23]} Qa5 {[%emt 0:01:34]} 8. Bd2 {[%emt 0:01:54]} e6 {[%emt 0:00:57]} 9. Nf3 {[%emt 0:00:33]} exd5 {[%emt 0:01:23]} 10. exd5 {[%emt 0:00:06]} Bg4 {[%emt 0:02:47]} 11. O-O {[%emt 0:00:21] E74: Königsindisch (Awerbach-Angriff)} a6 {[%emt 0:00:57]} 12. h3 {[%emt 0:05:06]} Bxf3 {[%emt 0:00:07]} 13. Bxf3 {[%emt 0:00:01]} Nbd7 {[%emt 0:02:10] LiveBook: 5 Games} 14. Qc2 {[%emt 0:01:23] [#]} Ne5 $146 {[%emt 0:06:28]} ({Vorgänger:} 14... Qc7 15. Rae1 Rfe8 16. Be2 Re7 17. f4 Rae8 18. Bf3 Rxe1 19. Rxe1 {½-½ (27) Lelenko,A (2466)-Telepnev,I (2505) ICCF email 2013}) 15. Be2 {[%emt 0:00:10]} Ne8 {[%emt 0:05:44]} 16. a4 {[%emt 0:02:14]} Qd8 {[%emt 0:06:57]} 17. f4 {[%emt 0:02:38]} Nd7 {[%emt 0:00:06]} 18. Rfe1 {[%emt 0:01:03]} f5 {[%emt 0:03:08]} 19. Bf3 {[%emt 0:00:46]} Qh4 {[%emt 0:02:27]} 20. Kh2 {[%emt 0:05:03]} Ne5 {[%emt 0:13:42]} (20... Nc7 $16 {keeps fighting.}) 21. fxe5 {[%emt 0:02:32]} Bxe5+ {[%emt 0:00:10]} 22. Kg1 {[%emt 0:20:15]} Nf6 {[%emt 0:05:55]} 23. Ne2 {[%emt 0:07:15]} Ng4 {[%emt 0:02:02]} 24. Bc3 {[%emt 0:03:51]} ({And not} 24. hxg4 fxg4 25. Ra3 Rae8 $11) (24. Qc1 $18) 24... Rae8 {[%emt 0:05:02]} 25. Bxe5 {[%emt 0:04:35]} Rxe5 {[%emt 0:00:48]} 26. Qc3 {[%emt 0:20:08]} Re3 {[%emt 0:05:08]} 27. g3 {[%emt 0:13:29]} Qh6 {[%emt 0:03:56]} 28. Nf4 $2 {[%emt 0:08:07]} (28. hxg4 $11 Rxc3 29. Nxc3) 28... Rxc3 {[%emt 0:00:35]} 29. bxc3 {[%emt 0:00:01]} Ne5 {[%emt 0:00:17]} 30. Bg2 {[%emt 0:00:33]} g5 {[%emt 0:01:36]} 31. Ne6 {[%emt 0:00:15]} Rf7 {[%emt 0:00:53]} 32. Nxc5 {[%emt 0:02:21]} f4 {[%emt 0:00:52]} 33. Rxe5 {[%emt 0:00:41]} dxe5 {[%emt 0:00:23]} 34. Ne4 {[%emt 0:00:33]} f3 $19 {[%emt 0:01:01]} 35. Bf1 {[%emt 0:00:01]} g4 {[%emt 0:01:42]} 36. hxg4 {[%emt 0:01:07]} Qe3+ {[%emt 0:02:33]} 37. Nf2 {[%emt 0:00:01]} e4 {[%emt 0:01:21]} 38. Rd1 {[%emt 0:00:09]} Qc5 {[%emt 0:00:33]} 39. d6 {[%emt 0:00:06]} 0-1

[Event "22nd Alekhine FIDE 2018"]
[Site "Voronezh"]
[Date "2018.06.17"]
[Round "6"]
[White "Selensky, Andrey"]
[Black "Gutsulyak, Nikolay"]
[Result "1/2-1/2"]
[ECO "A40"]
[WhiteElo "2040"]
[BlackElo "1953"]
[Annotator "NA"]
[PlyCount "99"]
[EventDate "2018.??.??"]
[EventType "swiss"]
[EventCountry "RUS"]
[SourceTitle "playchess.com"]
[Source "ChessBase"]
[SourceQuality "1"]
[TimeControl "5400+30"]

{[%evp 8,96,26,4,8,14,23,32767,32767,32767,28,29,31,54,19,41,63,69,44,0,23,39,150,32767,100,24,26,32767,32767,32767,94,32767,32767,32767,32767,32767,32767,-22,64,58,75,-74,-60,-69,0,32767,32767,32767,32767,32767,32767,32767,32767,32767,32767,32767,0,32767,32767,32767,32767,32767,32767,32767,-64,-92,-108,-106,-121,-118,-121,-121,-120,-127,-132,32767,-133,-145,32767,32767,32767,32767,32767,32767,-122,32767,32767,-120,-148,-137,-124]} 1. d4 {[%emt 0:00:00]} e6 {[%emt 0:00:05]} 2. Nf3 {[%emt 0:00:00]} f5 {[%emt 0:00:05]} 3. Bf4 {[%emt 0:01:30]} Nf6 {[%emt 0:00:12]} 4. h3 {[%emt 0:00:16]} b6 {[%emt 0:00:43]} 5. Nbd2 {[%emt 0:01:11] A80: Dutch Defence: Unusual White second moves} (5. e3 Bb7 6. Be2 Nc6 7. O-O g6 8. c4 Bg7 9. Nc3 Ne7 10. Nb5 d6 11. c5 Ne4 12. cxd6 cxd6 {1-0 (32) Grachev,B (2640)-Morozevich,A (2788) Moscow 2008}) 5... Bb7 {[%emt 0:00:26]} 6. e3 {[%emt 0:00:05] LiveBook: 16 Partien} Be7 {[%emt 0:02:32]} 7. Bc4 {[%emt 0:01:45]} Ne4 $146 {[%emt 0:02:52]} ({Predecessor:} 7... c5 8. Qe2 O-O 9. c3 Ne4 10. O-O-O {½-½ (10) Broemel,R (2172)-Luther,J (2165) Germany 2014}) 8. Qe2 {[%emt 0:02:11]} Bf6 {[%emt 0:13:16]} 9. Rg1 {[%emt 0:00:49]} d5 {[%emt 0:10:16]} 10. Bb5+ {[%emt 0:01:18]} c6 {[%emt 0:00:56]} 11. Bd3 {[%emt 0:00:04]} Nd7 {[%emt 0:01:51]} 12. g4 {[%emt 0:01:28]} c5 {[%emt 0:08:29]} 13. gxf5 {[%emt 0:05:07]} exf5 {[%emt 0:00:23]} 14. Ne5 {[%emt 0:03:03]} Bxe5 {[%emt 0:07:03]} (14... O-O $11 {keeps the balance.}) 15. dxe5 {[%emt 0:00:14]} Qe7 {[%emt 0:02:55]} 16. Bb5 {[%emt 0:02:49]} (16. Qh5+ $16 Qf7 17. Be2 Qxh5 18. Bxh5+ g6 19. Nxe4 fxe4 20. Bg4) 16... O-O {[%emt 0:21:47]} 17. Nxe4 {[%emt 0:00:49]} fxe4 {[%emt 0:01:08]} 18. Qh5 {[%emt 0:02:51]} a6 {[%emt 0:03:15]} (18... Rf7 $11 {keeps the balance.}) 19. Bxd7 {[%emt 0:01:47]} Qxd7 {[%emt 0:00:02]} 20. e6 {[%emt 0:00:22]} Qxe6 {[%emt 0:01:55]} 21. O-O-O {[%emt 0:00:29]} Rf7 {[%emt 0:01:18]} 22. Rg5 $1 {[%emt 0:01:10]} Rd8 {[%emt 0:02:01]} (22... Bc6 $11) 23. Rdg1 {[%emt 0:02:35]} d4 {[%emt 0:01:08] [#]} 24. Be5 {[%emt 0:06:14]} (24. Rxg7+ $1 $14 {[%mdl 512]} Rxg7 25. Rxg7+ Kxg7 26. Qg5+ Kf7 27. Qxd8) 24... Rdd7 {[%emt 0:01:56]} 25. Bf4 {[%emt 0:05:34]} Rd5 {[%emt 0:02:23]} (25... d3 $17 26. Re5 d2+ 27. Kd1 Qf6 28. Re8+ Rf8) 26. Rxd5 {[%emt 0:10:38]} Qxd5 {[%emt 0:00:34]} 27. Be5 {[%emt 0:00:39]} Bc6 {[%emt 0:02:17]} 28. Qg5 {[%emt 0:05:55]} g6 {[%emt 0:01:47]} 29. exd4 {[%emt 0:09:10]} cxd4 {[%emt 0:00:31]} 30. h4 {[%emt 0:02:22]} Rxf2 {[%emt 0:02:10]} 31. h5 {[%emt 0:03:43] [#]} Qc4 {[%emt 0:00:46]} (31... Qc5 $1 $17 {[%csl Gf2][%cal Rc5c2]} 32. Qd8+ Kf7 33. hxg6+ hxg6 34. Qc7+ Ke8) 32. Qd8+ {[%emt 0:00:23]} Rf8 {[%emt 0:00:26]} 33. Qxd4 {[%emt 0:00:07]} Rf1+ {[%emt 0:00:36]} 34. Rxf1 {[%emt 0:00:05]} Qxf1+ {[%emt 0:00:02]} 35. Qd1 {[%emt 0:01:21] [#]} Qxd1+ $1 {[%emt 0:00:44]} 36. Kxd1 {[%emt 0:00:04]} gxh5 {[%emt 0:00:19]} 37. Bg3 {[%emt 0:00:05]} Kf7 {[%emt 0:00:08]} 38. Ke2 {[%emt 0:00:17]} Kg6 {[%emt 0:00:11]} 39. Ke3 {[%emt 0:00:08]} Kg5 {[%emt 0:00:15]} 40. Bf4+ {[%emt 0:00:17]} Kg4 {[%emt 0:00:08]} 41. Bc7 {[%emt 0:00:08]} b5 {[%emt 0:00:12]} 42. Kf2 {[%emt 0:03:33]} h4 {[%emt 0:00:55]} 43. a3 {[%emt 0:00:45]} h5 {[%emt 0:00:30]} 44. b3 {[%emt 0:00:24]} h3 {[%emt 0:00:42]} 45. Bh2 {[%emt 0:00:21]} Bd5 {[%emt 0:01:11]} 46. Ke3 {[%emt 0:00:26]} h4 {[%emt 0:00:33]} 47. b4 {[%emt 0:02:21]} Bc6 {[%emt 0:00:36]} 48. Kf2 {[%emt 0:00:07]} Bb7 $17 {[%emt 0:00:49]} 49. Ke3 {[%emt 0:00:05]} Bd5 {[%emt 0:00:12]} 50. Kf2 {[%emt 0:00:08]} 1/2-1/2

[Event "22nd Alekhine FIDE 2018"]
[Site "Voronezh"]
[Date "2018.06.17"]
[Round "6"]
[White "Kitaev, Roman"]
[Black "Pingin, Artem"]
[Result "1/2-1/2"]
[ECO "A06"]
[WhiteElo "2031"]
[BlackElo "1967"]
[Annotator "NA"]
[PlyCount "106"]
[EventDate "2018.??.??"]
[EventType "swiss"]
[EventCountry "RUS"]
[SourceTitle "playchess.com"]
[Source "ChessBase"]
[SourceQuality "1"]
[TimeControl "5400+30"]

{[%evp 8,105,1,10,-1,7,10,2,32767,15,-6,-8,32767,32767,32767,-16,-20,-12,32767,32767,32767,32767,32767,32767,32767,13,7,16,0,-28,-27,-28,0,6,0,0,0,0,32767,32767,32767,32767,32767,-10,0,32767,32767,32767,6,-6,0,32767,32767,-20,32767,-14,32767,32767,32767,32767,32767,32767,32767,32767,32767,32767,-36,32767,32767,-18,-9,-11,-13,32767,-31,-44,-44,32767,32767,32767,32767,32767,32767,32767,-27,32767,32767,32767,32767,32767,32767,32767,-20,-28,-18,-22,-20,-21,-10,-11]} 1. Nf3 {[%emt 0:00:00]} d5 {[%emt 0:00:17]} 2. b3 {[%emt 0:00:00]} Bf5 {[%emt 0:00:50]} 3. Bb2 {[%emt 0:00:05]} e6 {[%emt 0:00:11]} 4. g3 {[%emt 0:00:05]} Nf6 {[%emt 0:00:07]} 5. Bg2 {[%emt 0:00:08]} Be7 {[%emt 0:00:25]} 6. O-O {[%emt 0:00:20]} h6 {[%emt 0:00:10]} 7. d3 {[%emt 0:00:05]} O-O {[%emt 0:00:38]} 8. c4 {[%emt 0:00:13]} c6 {[%emt 0:00:08]} 9. a3 {[%emt 0:00:03]} a5 {[%emt 0:00:07]} 10. Nbd2 {[%emt 0:00:05]} Bh7 {[%emt 0:00:51]} 11. Qb1 {[%emt 0:00:18] A12: English Opening: 1...c6 with b3 by White} Nbd7 {[%emt 0:01:02]} (11... Na6 12. Bc3 c5 13. cxd5 exd5 14. e4 b5 15. Re1 Qb6 16. a4 Nc7 17. axb5 Qxb5 18. Ra4 Ne6 {1-0 (67) Karjakin,S (2763)-Grischuk,A (2767) Moscow 2018}) 12. Bc3 {[%emt 0:00:26]} b5 {[%emt 0:03:24]} 13. cxb5 {[%emt 0:00:44]} cxb5 {[%emt 0:00:01]} 14. b4 {[%emt 0:00:12]} axb4 {[%emt 0:01:10]} 15. axb4 {[%emt 0:00:09]} Nb6 $146 {[%emt 0:07:01]} ({Predecessor:} 15... Rxa1 16. Qxa1 Qb6 17. Nb3 Rc8 {0-1 (39) Krnic,Z (2430)-Samovojska,D (2365) Belgrade 1988}) 16. Nb3 {[%emt 0:04:51]} Na4 {[%emt 0:03:25]} 17. Bd2 {[%emt 0:00:23]} Nd7 {[%emt 0:01:00]} 18. Na5 {[%emt 0:01:53]} Bf6 {[%emt 0:00:19]} 19. Ra2 {[%emt 0:00:06]} Nc3 {[%emt 0:13:45]} 20. Bxc3 $1 {[%emt 0:00:19]} Bxc3 {[%emt 0:00:01]} 21. Rc1 {[%emt 0:01:49]} Bf6 {[%emt 0:01:03]} 22. Rac2 {[%emt 0:12:04]} Nb6 {[%emt 0:00:11]} 23. Nd2 {[%emt 0:00:58]} Na4 {[%emt 0:07:38]} 24. Ndb3 {[%emt 0:02:12]} Bg5 {[%emt 0:05:36]} 25. Re1 {[%emt 0:08:05]} Bf6 {[%emt 0:11:28]} 26. Rec1 {[%emt 0:03:55]} Bg5 {[%emt 0:00:08]} 27. Re1 {[%emt 0:00:12]} Bf6 {[%emt 0:01:24]} 28. Nc5 {[%emt 0:03:42]} Qe7 {[%emt 0:14:33]} 29. Nxa4 {[%emt 0:25:07]} bxa4 30. Rec1 {[%emt 0:00:10]} a3 {[%emt 0:00:48]} 31. Nc6 {[%emt 0:09:44]} Qb7 {[%emt 0:00:29]} 32. b5 {[%emt 0:01:10]} a2 {[%emt 0:02:16]} 33. Rxa2 {[%emt 0:00:33]} Rxa2 {[%emt 0:00:01]} 34. Qxa2 {[%emt 0:00:09]} Qxb5 {[%emt 0:00:02]} 35. Qb1 {[%emt 0:07:33]} Qa4 {[%emt 0:00:48]} 36. Qb4 {[%emt 0:04:20]} Qxb4 {[%emt 0:00:25]} 37. Nxb4 {[%emt 0:00:25]} Bg6 {[%emt 0:00:19]} 38. Bf3 {[%emt 0:02:46]} Rb8 {[%emt 0:01:04]} 39. Na6 {[%emt 0:01:02]} Ra8 {[%emt 0:00:21]} 40. Nc5 {[%emt 0:00:26]} Rc8 {[%emt 0:02:14]} 41. Nb3 {[%emt 0:00:41]} Rxc1+ {[%emt 0:00:02]} 42. Nxc1 {[%emt 0:00:07]} Be7 {[%emt 0:00:12]} 43. e4 {[%emt 0:01:56]} dxe4 {[%emt 0:00:02]} 44. dxe4 {[%emt 0:00:14]} f6 {[%emt 0:00:05]} 45. Ne2 {[%emt 0:00:23]} Bf7 {[%emt 0:00:30]} 46. Nf4 {[%emt 0:00:07]} g5 {[%emt 0:00:12]} 47. Ng2 {[%emt 0:01:23]} Bc5 {[%emt 0:00:09]} 48. h4 {[%emt 0:00:26]} Kg7 {[%emt 0:00:09]} 49. hxg5 {[%emt 0:00:31]} hxg5 {[%emt 0:00:01]} 50. Ne1 {[%emt 0:01:11]} f5 {[%emt 0:00:22]} 51. exf5 {[%emt 0:00:46]} exf5 {[%emt 0:00:01]} 52. g4 {[%emt 0:00:13]} fxg4 $11 {[%emt 0:00:05]} 53. Bxg4 {[%emt 0:00:08]} Bd5 {[%emt 0:00:17]} 1/2-1/2

[Event "22nd Alekhine FIDE 2018"]
[Site "Voronezh"]
[Date "2018.06.17"]
[Round "6"]
[White "Bruyatskaya, Mariya"]
[Black "Kuzmin, Roman"]
[Result "0-1"]
[WhiteElo "2026"]
[BlackElo "1963"]
[Annotator "NA"]
[PlyCount "98"]
[EventDate "2018.??.??"]
[EventType "swiss"]
[EventCountry "RUS"]
[SourceTitle "playchess.com"]
[Source "ChessBase"]
[SourceQuality "1"]
[TimeControl "5400+30"]

{[%evp 8,94,34,21,39,37,32767,32767,32767,18,15,22,32767,32767,27,0,11,0,0,-42,-29,-35,32767,32767,32767,32767,-49,-56,-43,32767,32767,-31,-41,32767,-121,-170,-105,32767,32767,-255,-237,-223,32767,32767,32767,32767,32767,-252,-274,-278,32767,32767,-189,-300,-257,-234,32767,32767,32767,32767,32767,32767,-236,32767,32767,32767,32767,-504,-529,-484,32767,32767,-591,32767,32767,32767,32767,-924,-858,32767,32767,32767,32767,32767,32767,-1006,-1114,32767,-956]} 1. e4 c5 2. Nf3 e6 3. d4 cxd4 4. Nxd4 a6 5. Nc3 Qc7 6. a3 b5 7. g3 Bb7 8. Bg2 d6 9. O-O Nf6 10. Bg5 {B43: Sizilianisch (Paulsen-Variante)} (10. f4 Nbd7 11. g4 e5 12. Nf5 g6 13. Ne3 exf4 14. Rxf4 Bg7 15. g5 Nh5 16. Ned5 Qc5+ 17. Be3 Qxe3+ 18. Nxe3 Nxf4 19. Qxd6 {1-0 (26) Chigaev,M (2555)-Warakomski,T (2537) Katowice 2017}) 10... Nbd7 {LiveBook: 3 Games} 11. Qe2 Be7 12. Rad1 O-O 13. h4 $146 ({Vorgänger:} 13. f4 Rfe8 14. Kh1 Rac8 15. g4 Nb6 16. f5 Bd8 17. fxe6 fxe6 {0-1 (34) Tvarusko,L (1771)-Fancsy,I (2396) Fejer Region 2016}) 13... h6 14. Bc1 $1 Ne5 15. Bh3 Nc4 16. a4 b4 17. Na2 d5 18. b3 Nb6 19. e5 Ne4 20. Qh5 {[#]} Bc5 $1 21. Be3 (21. Bf4 $17) 21... Rae8 (21... Nd7 $19 22. Bf4 Qb6) 22. Qg4 Qxe5 23. Nf3 (23. Nc1 {was worth a try.}) 23... Qc7 24. Bf4 Qe7 25. Ne5 Nf6 26. Qe2 Nbd7 27. Nd3 (27. Bg2 $142) 27... e5 28. Bd2 a5 29. Nxc5 Qxc5 30. c3 (30. Qb5 {is a better defense.} Qxb5 31. axb5) 30... bxc3 31. Nxc3 d4 32. Nb5 Qc6 33. f3 e4 34. Nxd4 Qb6 35. Qf2 exf3 36. Nb5 Nc5 37. Rfe1 $2 (37. Be3 {is more resistant.} Nfe4 38. Bxc5) 37... Nfe4 38. Rxe4 Rxe4 39. Be3 Qg6 40. Bxc5 Re2 41. h5 Qxh5 42. Bf1 Rxf2 43. Bxf2 f5 44. Rd7 Bc6 45. Rc7 Rf6 46. Nd4 Be4 47. Bc4+ Kh8 $19 48. Rd7 Qh3 49. Bf1 Qg4 0-1

[Event "22nd Alekhine FIDE 2018"]
[Site "Voronezh"]
[Date "2018.06.17"]
[Round "6"]
[White "Lepaev, Andrey"]
[Black "Garafutdinov, Ainur"]
[Result "1-0"]
[ECO "A80"]
[WhiteElo "1992"]
[BlackElo "2122"]
[Annotator "NA"]
[PlyCount "28"]
[EventDate "2018.??.??"]
[EventType "swiss"]
[EventCountry "RUS"]
[SourceTitle "playchess.com"]
[Source "ChessBase"]
[SourceQuality "1"]
[TimeControl "5400+30"]

{[%evp 8,28,35,32767,32767,32767,32767,32767,40,45,32767,32767,32767,32767,32767,32767,32767,11,49,33,36,54,31]} 1. d4 {[%emt 0:00:00]} f5 {[%emt 0:02:27]} 2. Nf3 {[%emt 0:00:00]} Nf6 {[%emt 0:00:04]} 3. g3 {[%emt 0:00:00]} g6 {[%emt 0:00:03]} 4. Bg2 {[%emt 0:00:00]} Bg7 {[%emt 0:00:04]} 5. O-O {[%emt 0:00:00]} O-O {[%emt 0:00:04]} 6. b3 {[%emt 0:00:00]} d6 {[%emt 0:00:06]} 7. Bb2 {[%emt 0:00:00]} c6 {[%emt 0:00:10] LiveBook: 503 Games} 8. c4 {[%emt 0:02:36]} Qc7 {[%emt 0:00:24]} 9. Nc3 {[%emt 0:06:37]} e5 {[%emt 0:02:30]} 10. dxe5 {[%emt 0:04:30]} dxe5 {[%emt 0:00:01]} 11. e4 {[%emt 0:00:05]} f4 {[%emt 0:04:43]} 12. gxf4 {[%emt 0:26:19]} exf4 {[%emt 0:00:03]} 13. e5 {[%emt 0:00:04]} Ng4 {[%emt 0:26:00]} 14. Re1 Nd7 $14 1-0

[Event "22nd Alekhine FIDE 2018"]
[Site "Voronezh"]
[Date "2018.06.17"]
[Round "6"]
[White "Kazmin, Semen"]
[Black "Martyntsev, Roman"]
[Result "1-0"]
[ECO "B34"]
[WhiteElo "1970"]
[BlackElo "2035"]
[Annotator "NA"]
[PlyCount "77"]
[EventDate "2018.??.??"]
[EventType "swiss"]
[EventCountry "RUS"]
[SourceTitle "playchess.com"]
[Source "ChessBase"]
[SourceQuality "1"]
[TimeControl "5400+30"]

{[%evp 8,77,22,6,33,18,11,23,15,19,39,4,18,16,32767,32767,32767,32767,32767,11,17,27,32767,19,69,84,85,77,32767,94,139,100,287,134,128,32767,79,32767,78,32767,51,46,32767,62,55,47,32767,32767,32767,32,32767,32767,32767,32767,32767,32767,32767,79,32767,84,32767,32767,32767,32767,115,32767,123,32767,32767,154,806,951]} 1. e4 c5 2. Nf3 Nc6 3. d4 cxd4 4. Nxd4 Nf6 5. Nc3 e5 {LiveBook: 15214 Games} 6. Ndb5 d6 7. Nd5 Nxd5 8. exd5 Ne7 9. c3 Nf5 10. a4 Be7 11. Bd3 O-O 12. O-O g6 13. Kh1 Ng7 14. f4 a6 15. Na3 f5 (15... Bf5 $11) 16. Nc4 exf4 17. Bxf4 g5 18. Be3 f4 19. Bb6 Qd7 (19... Qe8 $16 20. Bc7 Qd7) 20. Bd4 ({Better is} 20. Qc2 $18) 20... Qg4 21. Qe1 Rf7 22. Nb6 Rb8 23. Bxg7 Kxg7 24. Be2 Qh4 25. Qxh4 gxh4 26. Bh5 Rf8 27. Rae1 Bg5 28. Nxc8 Rbxc8 29. Re6 Rcd8 30. h3 Rf5 31. c4 Rff8 32. b3 Rd7 33. Kg1 Rf6 34. Rd1 Rf8 35. Rd4 Rf6 36. Kf2 Rxe6 37. dxe6 Rd8 38. Rd5 h6 $2 {[#]} (38... Bf6 $16 39. Rf5 Rf8) 39. Rxg5+ $18 1-0

[Event "22nd Alekhine FIDE 2018"]
[Site "Voronezh"]
[Date "2018.06.17"]
[Round "6"]
[White "Kulpin, Dmitriy"]
[Black "Kutyanina, Mariya"]
[Result "1-0"]
[ECO "E06"]
[WhiteElo "1954"]
[BlackElo "2021"]
[Annotator "NA"]
[PlyCount "47"]
[EventDate "2018.??.??"]
[EventType "swiss"]
[EventCountry "RUS"]
[SourceTitle "playchess.com"]
[Source "ChessBase"]
[SourceQuality "1"]
[TimeControl "5400+30"]

{[%evp 8,46,22,9,0,21,12,13,17,0,8,2,32767,32767,32767,32767,32767,0,32767,11,32767,0,24,34,32767,-43,-36,-54,-60,32767,-56,32767,147,32767,32767,32767,32767,32767,32767,32767,331]} 1. d4 {[%emt 0:00:00]} Nf6 {[%emt 0:00:11]} 2. Nf3 {[%emt 0:00:00]} e6 {[%emt 0:00:12]} 3. g3 {[%emt 0:00:00]} d5 {[%emt 0:00:41]} 4. c4 {[%emt 0:00:00]} Be7 {[%emt 0:00:07]} 5. Bg2 {[%emt 0:00:00]} O-O {[%emt 0:00:10]} 6. O-O {[%emt 0:00:00]} b6 {[%emt 0:00:13]} 7. Nc3 {[%emt 0:00:34]} Bb7 {[%emt 0:00:09] LiveBook: 651 Partien} 8. Ne5 {[%emt 0:00:15]} Nbd7 {[%emt 0:01:05]} 9. cxd5 {[%emt 0:00:39]} Nxd5 {[%emt 0:05:21]} 10. Nxd5 {[%emt 0:00:14]} exd5 {[%emt 0:00:11]} 11. Bf4 {[%emt 0:02:05]} Nxe5 {[%emt 0:03:32] E18: Damenindisch (Hauptfortsetzung)} 12. Bxe5 {[%emt 0:00:13]} Re8 {[%emt 0:00:53]} (12... Qd7 13. Rc1 c5 14. dxc5 bxc5 15. b4 Qe6 16. Ba1 c4 17. b5 Rfd8 18. Bd4 Bf6 19. e3 Bxd4 20. Qxd4 {½-½ (29) Williams,C (2492)-Siigur,J (2469) ICCF email 2012}) 13. Rc1 {[%emt 0:06:34]} c5 $146 {[%emt 0:01:03]} ({Vorgänger:} 13... Bd6 14. Bxd6 Qxd6 15. Qc2 Re7 16. Rfe1 Rae8 17. Qa4 Rxe2 18. Qxe8+ {1-0 (18) Katafiasz,T (1876)-Grzesik,N (1924) Wroclaw 2013}) 14. Re1 {[%emt 0:02:23]} Bg5 {[%emt 0:13:11]} 15. e3 {[%emt 0:07:33]} c4 {[%emt 0:03:22] [#]} 16. f4 $2 {[%emt 0:09:50]} ({Better is} 16. Rxc4 $1 $16 {[%mdl 512]} dxc4 17. Bxb7) 16... Be7 {[%emt 0:02:19]} 17. f5 {[%emt 0:01:42]} Bb4 {[%emt 0:01:11]} 18. Rf1 {[%emt 0:00:09]} f6 {[%emt 0:01:04]} 19. Bf4 {[%emt 0:02:06]} Ba6 $2 {[%emt 0:03:21]} (19... Bd6 $15 {behält die Oberhand.}) 20. Rf2 {[%emt 0:02:04]} Qd7 {[%emt 0:02:41]} 21. g4 {[%emt 0:00:19]} Bd6 {[%emt 0:00:11]} 22. Bxd5+ {[%emt 0:03:49]} Kh8 {[%emt 0:02:03]} 23. Bxa8 {[%emt 0:01:18]} Bxf4 $18 24. Rxf4 1-0

[Event "22nd Alekhine FIDE 2018"]
[Site "Voronezh"]
[Date "2018.06.17"]
[Round "6"]
[White "Nakonechny, Ignat"]
[Black "Markevich, Arseniy"]
[Result "1-0"]
[ECO "C11"]
[WhiteElo "1890"]
[BlackElo "2076"]
[Annotator "NA RC"]
[PlyCount "49"]
[EventDate "2018.??.??"]
[EventType "swiss"]
[EventCountry "RUS"]
[SourceTitle "playchess.com"]
[Source "ChessBase"]
[SourceQuality "1"]
[TimeControl "5400+30"]

{[%evp 8,49,42,30,31,62,68,37,32767,32767,32767,32767,91,96,141,119,95,59,91,75,90,66,32767,88,89,60,74,43,32767,32767,32767,32767,32767,32767,556,650,1363,758,2079,32767,32767,560,29995,29996]} 1. e4 e6 2. d4 d5 3. Nc3 Nf6 4. e5 Ng8 5. f4 b6 {C11: French: Classical System: 4 e5 and 4 Bg5 dxe4} (5... c5 6. Nf3 Nc6 7. Be3 Nh6 8. dxc5 Nf5 9. Bf2 Qa5 10. Qd2 Bxc5 11. Bxc5 Qxc5 12. Bd3 Ne3 13. Nd1 {½-½ (57) Havlikova,K (2257)-Ider,B (2510) Heraklion 2018}) 6. Nf3 Bb7 $146 ({Predecessor:} 6... Qd7 7. g3 Ne7 8. h4 h5 9. Bh3 Nbc6 10. g4 hxg4 11. Bxg4 Ng8 12. Ng5 Nh6 13. Be3 {1-0 (58) Armbrust,F (2295)-Engel,B (2227) Hofheim 2015}) 7. Be3 Qd7 8. Bd3 Nc6 9. O-O O-O-O 10. a3 h5 11. b4 Nh6 12. Kh1 Ne7 13. Ne2 Nef5 14. Bg1 h4 15. h3 f6 16. Qd2 Qf7 17. a4 Be7 18. a5 Qh5 19. axb6 axb6 20. Ra7 c6 21. Qc3 Rd7 22. Rfa1 Bd8 23. Ba6 Ne7 24. Ra8+ Kc7 25. Bxb7 1-0